bitfinex/quotes_ETHUSD_20241024
["timestamp","ask_amount","ask_price","bid_price","bid_amount"]
[1729770257195,0.01,2529.2,2529.1,1.56160844]
[1729770257351,3.95369,2529.3,2529.1,1.56160844]
[1729770257546,0.01,2529.2,2529.1,0.25071443]
[1729770257874,0.01,2529.2,2529.1,1.31089401]
[1729770258082,0.7944,2529.4,2529.1,1.56160844]
[1729770258291,0.7944,2529.4,2529.3,1.31089401]
[1729770258584,3.96342,2529.5,2529.3,1.56139495]
[1729770258585,3.95342,2529.5,2529.3,1.56139495]
[1729770258791,0.10884038,2529.6,2529.4,1.31089401]
[1729770258792,0.01,2529.6,2529.4,1.31089401]
[1729770258949,0.01,2529.9,2529.4,1.31089401]
[1729770258950,0.7918,2529.9,2529.5,1.56118149]
[1729770259153,4.74453,2529.9,2529.7,1.31089401]
[1729770259348,3.95288,2529.8,2529.7,1.31089401]
[1729770259553,4.74453,2529.9,2529.7,1.31089401]
[1729770260083,4.74453,2529.9,2529.8,1.31089401]
[1729770260262,4.74453,2529.9,2529.7,1.31089401]
[1729770260263,0.7918,2529.9,2529.7,1.31089401]
[1729770260860,4.74454,2529.9,2529.7,1.31089401]
[1729770261664,4.74454,2529.9,2529.8,1.31089401]
[1729770262266,0.01,2529.9,2529.8,1.31089401]
[1729770263660,3.96272,2529.9,2529.8,1.31089401]
[1729770263859,3.96272,2529.9,2529.7,1.31089401]
[1729770264201,3.95288,2529.8,2529.7,1.31089401]
[1729770264879,0.01,2529.9,2529.7,1.31089401]
[1729770265054,3.96275,2529.9,2529.7,1.31089401]
[1729770265257,3.96275,2529.9,2529.8,1.31089401]
[1729770265258,0.01,2529.9,2529.8,1.31089401]
[1729770265457,3.96272,2529.9,2529.8,1.31089401]
[1729770265701,3.96272,2529.9,2529.7,1.31089401]
[1729770266911,3.96272,2529.9,2529.8,0.24901705]
[1729770267212,3.96272,2529.9,2529.7,1.31089401]
[1729770267361,3.96272,2529.9,2529.8,0.24901705]
[1729770267561,3.96272,2529.9,2529.7,1.31089401]
[1729770267906,3.96272,2529.9,2529.8,0.24901705]
[1729770268203,3.96272,2529.9,2529.7,1.31089401]
[1729770268500,3.96272,2529.9,2529.8,0.24901705]
[1729770268809,3.96272,2529.9,2529.7,1.31089401]
[1729770268977,3.96272,2529.9,2529.8,0.24901705]
[1729770269180,3.96272,2529.9,2529.7,1.31089401]
[1729770269379,3.96272,2529.9,2529.8,0.24901705]
[1729770269708,3.96272,2529.9,2529.7,1.31089401]
[1729770269895,3.96272,2529.9,2529.8,0.24901705]
[1729770270070,3.96272,2529.9,2529.8,1.55991106]
[1729770270609,0.01,2529.9,2529.8,0.24901705]
[1729770270900,0.01,2529.9,2529.7,1.31089401]
[1729770271064,0.01,2529.9,2529.8,0.24885791]
[1729770271260,0.01,2529.9,2529.7,1.31089401]
[1729770271500,0.01,2529.9,2529.8,0.24885791]
[1729770271664,0.01,2529.9,2529.8,1.55975192]
[1729770271866,0.01,2529.9,2529.8,0.24885791]
[1729770272380,0.01,2529.9,2529.7,1.31089401]
[1729770272580,0.01,2529.9,2529.8,0.24885791]
[1729770272762,0.01,2529.9,2529.7,1.31089401]
[1729770272968,0.01,2529.9,2529.8,0.24885791]
[1729770273168,0.01,2529.9,2529.7,1.31089401]
[1729770273381,0.01,2529.9,2529.8,0.24885791]
[1729770273617,3.96272,2529.9,2529.6,1.31089401]
[1729770273784,3.95288,2529.8,2529.6,1.31089401]
[1729770273983,3.95288,2529.8,2529.3,0.7835]
[1729770273984,4.06185104,2529.7,2529.3,0.7835]
[1729770274205,4.06185104,2529.7,2529.4,1.31089401]
[1729770274206,3.95321,2529.6,2529.4,1.31089401]
[1729770275417,3.95321,2529.6,2529.3,0.7835]
[1729770275418,3.95321,2529.6,2529.3,2.09439401]
[1729770276089,7.90653,2529.6,2529.3,2.09439401]
[1729770276296,3.95321,2529.6,2529.3,2.09439401]
[1729770276492,0.7534,2529.5,2529.2,1.31089401]
[1729770276906,0.7534,2529.5,2529.2,3.95381]
[1729770277217,3.95365,2529.4,2529.0,0.8223]
[1729770277394,3.95365,2529.4,2529.1,1.31089401]
[1729770277596,3.95365,2529.4,2529.2,1.31089401]
[1729770277903,0.86223179,2529.5,2529.2,1.31089401]
[1729770278105,4.81560179,2529.5,2529.1,1.31089401]
[1729770278311,4.81560179,2529.5,2529.2,1.31089401]
[1729770279789,8.76903179,2529.5,2529.2,1.31089401]
[1729770280008,4.71677,2529.5,2529.2,1.31089401]
[1729770280696,3.95353,2529.4,2529.2,1.31089401]
[1729770280898,4.71677,2529.5,2529.2,1.31089401]
[1729770281909,4.71677,2529.5,2529.3,0.24965672]
[1729770282285,4.71677,2529.5,2529.2,1.31089401]
[1729770282286,3.9535,2529.4,2529.2,1.31089401]
[1729770282723,4.05233916,2529.4,2529.2,1.31089401]
[1729770283618,3.9535,2529.4,2529.2,1.31089401]
[1729770284125,4.05233917,2529.4,2529.1,1.31089401]
[1729770284279,3.96367,2529.3,2528.9,3.95427]
[1729770284481,4.07251323,2529.3,2529.0,1.31089401]
[1729770285103,4.71551,2529.2,2528.7,3.95452]
[1729770285312,0.7616,2529.2,2528.8,1.31089401]
[1729770285490,4.71545,2529.2,2528.9,1.31089401]
[1729770285686,4.71545,2529.2,2529.0,1.31089401]
[1729770286816,4.71545,2529.2,2528.9,1.31089401]
[1729770287115,4.71545,2529.2,2529.0,1.31089401]
[1729770287990,0.7616,2529.2,2529.1,1.31089401]
[1729770288305,3.97369,2529.3,2529.1,1.31089401]
[1729770289388,3.95406,2529.1,2528.6,4.71861]
[1729770289591,3.95406,2529.1,2528.8,1.31089401]
[1729770289592,4.77907,2529.0,2528.8,1.31089401]
[1729770289992,4.87792551,2529.0,2528.8,1.31089401]
[1729770290406,4.87792551,2529.0,2528.7,1.31089401]
[1729770290586,4.87792551,2529.0,2528.8,1.31089401]
[1729770292728,4.77907,2529.0,2528.8,1.31089401]
[1729770292889,0.8249,2529.0,2528.9,1.31089401]
[1729770293224,4.07283825,2529.1,2528.9,1.56137806]
[1729770295402,4.07283825,2529.1,2529.0,1.31089401]
[1729770295626,4.07283825,2529.1,2529.0,1.56127129]
[1729770296200,4.07283825,2529.1,2529.0,0.25037728]
[1729770296627,4.07283825,2529.1,2529.0,1.56127129]
[1729770296628,0.11885825,2529.1,2529.0,1.56127129]
[1729770296830,0.02,2529.1,2529.0,1.56127129]
[1729770297127,3.97397,2529.1,2529.0,1.56127129]
[1729770297318,0.02,2529.1,2529.0,1.56127129]
[1729770297521,0.11885466,2529.1,2529.0,1.56127129]
[1729770297716,0.10885466,2529.1,2529.0,1.56127129]
[1729770297916,0.11885466,2529.1,2529.0,1.56127129]
[1729770298097,0.02,2529.1,2529.0,0.25037728]
[1729770298294,0.02,2529.1,2529.0,1.56127129]
[1729770299839,0.11885463,2529.1,2529.0,1.56127129]
[1729770300201,0.02,2529.1,2529.0,1.56127129]
[1729770300604,0.11885468,2529.1,2529.0,1.56127129]
[1729770300837,0.02,2529.1,2529.0,1.56127129]
[1729770301438,0.91435464,2529.2,2529.0,1.56127129]
[1729770301643,0.01,2529.3,2529.1,1.31089401]
[1729770301933,0.01,2529.3,2529.1,0.25028982]
[1729770301934,3.96367,2529.3,2529.1,0.25028982]
[1729770302142,0.01,2529.3,2529.1,1.56118383]
[1729770302499,0.01,2529.3,2529.1,2.01289339]
[1729770302735,0.01,2529.3,2529.1,0.70199938]
[1729770302935,0.01,2529.3,2529.1,2.01289339]
[1729770305308,0.01,2529.3,2529.1,0.70199938]
[1729770305517,3.96368,2529.3,2529.1,0.70199938]
[1729770305716,4.85805173,2529.2,2529.1,0.25028982]
[1729770306118,3.95401,2529.1,2528.9,1.31089401]
[1729770306435,3.96417,2529.0,2528.8,1.31089401]
[1729770306639,4.06302772,2529.0,2528.7,1.31089401]
[1729770306950,4.06302772,2529.0,2528.8,1.31089401]
[1729770307319,4.06302772,2529.0,2528.9,1.31089401]
[1729770307506,3.96401,2529.1,2528.9,1.31089401]
[1729770308010,3.96401,2529.1,2529.0,1.31089401]
[1729770308720,3.97401,2529.1,2529.0,1.31089401]
[1729770308911,3.96401,2529.1,2529.0,1.31089401]
[1729770309308,3.97401,2529.1,2529.0,1.31089401]
[1729770309514,3.97401,2529.1,2528.9,1.31089401]
[1729770309845,3.97401,2529.1,2529.0,1.9776]
[1729770310047,3.96401,2529.1,2529.0,3.28849401]
[1729770310352,3.97401,2529.1,2529.0,3.28849401]
[1729770310648,4.07286541,2529.1,2529.0,1.9776]
[1729770310856,4.95507595,2529.1,2529.0,1.9776]
[1729770311226,4.85622054,2529.1,2529.0,1.9776]
[1729770311424,4.84622054,2529.1,2529.0,1.9776]
[1729770311636,3.97401,2529.1,2529.0,1.9776]
[1729770311835,4.0728654,2529.1,2529.0,2.2279808]
[1729770312039,4.8850654,2529.1,2529.0,1.9776]
[1729770312338,4.8850654,2529.1,2529.0,2.2280194]
[1729770312648,5.76895594,2529.1,2529.0,2.2280194]
[1729770313715,5.76896227,2529.1,2529.0,2.2280194]
[1729770313915,4.78621,2529.1,2529.0,2.2280194]
[1729770314115,3.97401,2529.1,2529.0,2.2280194]
[1729770314353,4.07286554,2529.1,2529.0,2.2280194]
[1729770314514,0.02,2529.1,2529.0,2.2280194]
[1729770315755,3.97397,2529.1,2529.0,2.2280194]
[1729770316445,4.07282324,2529.1,2529.0,2.2280194]
[1729770316849,4.95270356,2529.1,2529.0,2.2280194]
[1729770317408,4.95270743,2529.1,2529.0,2.2280194]
[1729770318051,5.75130743,2529.1,2529.0,2.2280194]
[1729770321647,5.65245032,2529.1,2529.0,2.2280194]
[1729770322959,4.85385032,2529.1,2529.0,2.2280194]
[1729770323163,3.97397,2529.1,2529.0,2.2280194]
[1729770324217,3.96397,2529.1,2529.0,2.2280194]
[1729770326056,3.97397,2529.1,2529.0,2.2280194]
[1729770327037,3.96397,2529.1,2529.0,2.2280194]
[1729770327641,3.97397,2529.1,2529.0,2.2280194]
[1729770327839,3.96397,2529.1,2529.0,2.2280194]
[1729770328062,3.97397,2529.1,2529.0,2.2280194]
[1729770329606,4.07282772,2529.1,2529.0,2.2280194]
[1729770329752,4.95593849,2529.1,2529.0,2.2280194]
[1729770329953,5.75873849,2529.1,2529.0,2.2280194]
[1729770335948,5.74873849,2529.1,2529.0,2.2280194]
[1729770336161,5.75873849,2529.1,2529.0,2.2280194]
[1729770337692,5.74873849,2529.1,2529.0,2.2280194]
[1729770337983,3.96397,2529.1,2529.0,2.2280194]
[1729770341484,3.97397,2529.1,2529.0,2.2280194]
[1729770342273,3.96397,2529.1,2529.0,2.2280194]
[1729770342474,3.97397,2529.1,2529.0,2.2280194]
[1729770342676,3.96397,2529.1,2529.0,2.2280194]
[1729770342979,4.06282164,2529.1,2529.0,2.2280194]
[1729770343681,4.06282168,2529.1,2529.0,2.2280194]
[1729770344238,3.96397,2529.1,2529.0,2.2280194]
[1729770344869,4.06282165,2529.1,2529.0,2.2280194]
[1729770345464,3.96397,2529.1,2529.0,2.2280194]
[1729770345670,4.06282165,2529.1,2529.0,2.2280194]
[1729770346180,3.96397,2529.1,2529.0,2.2280194]
[1729770347245,0.01,2529.2,2529.1,0.7619]
[1729770347470,0.01,2529.2,2529.1,2.32330448]
[1729770347690,4.06265927,2529.2,2529.1,1.01241047]
[1729770348050,4.06265927,2529.2,2529.1,0.25051047]
[1729770349383,5.0768986,2529.2,2529.1,0.25051047]
[1729770350264,4.06265927,2529.2,2529.1,0.25051047]
[1729770351073,4.06265927,2529.2,2529.0,1.9776]
[1729770351382,3.95397,2529.1,2529.0,1.9776]
[1729770351686,4.05282162,2529.1,2529.0,1.9776]
[1729770352966,4.06282162,2529.1,2529.0,1.9776]
[1729770356989,4.06282162,2529.1,2529.0,2.22815931]
[1729770359461,4.94599478,2529.1,2529.0,2.22815931]
[1729770362198,5.74019478,2529.1,2529.0,2.22815931]
[1729770368164,4.06282162,2529.1,2529.0,2.22815931]
[1729770368365,0.01,2529.2,2529.0,3.53905332]
[1729770368612,0.01,2529.4,2529.2,0.8154]
[1729770368898,0.01,2529.4,2529.3,1.31089401]
[1729770369066,0.01,2529.4,2529.3,1.56118133]
[1729770369260,0.01,2529.4,2529.3,1.98154875]
[1729770371171,4.57194817,2529.7,2529.4,0.7527]
[1729770371172,0.61890817,2529.7,2529.4,0.7527]
[1729770371468,4.06171733,2529.8,2529.6,2.06359401]
[1729770371702,3.96303,2529.7,2529.6,0.7527]
[1729770371974,3.96303,2529.7,2529.6,1.00266714]
[1729770372413,0.01,2529.7,2529.6,1.00266714]
[1729770372911,3.96303,2529.7,2529.6,1.00266714]
[1729770373074,0.01,2529.7,2529.6,1.00266714]
[1729770373275,0.01,2529.7,2529.6,2.94026127]
[1729770374004,3.96303,2529.7,2529.6,2.94026127]
[1729770374212,3.96303,2529.7,2529.6,1.00266714]
[1729770374721,0.01,2529.7,2529.6,1.00266714]
[1729770375321,0.10882733,2529.8,2529.6,2.31356115]
[1729770375526,0.01,2529.9,2529.7,1.31089401]
[1729770375704,0.01,2529.9,2529.7,1.93757712]
[1729770375909,0.01,2529.9,2529.7,2.18711435]
[1729770376496,3.96272,2529.9,2529.7,2.18711435]
[1729770378287,3.96272,2529.9,2529.8,1.31089401]
[1729770378489,3.96272,2529.9,2529.8,0.24943053]
[1729770378725,3.96272,2529.9,2529.7,1.93757712]
[1729770378921,3.96272,2529.9,2529.8,0.26902771]
[1729770379220,3.96272,2529.9,2529.8,0.51845824]
[1729770380715,4.06154357,2529.9,2529.8,0.51845824]
[1729770381792,6.20083744,2529.9,2529.8,0.24943053]
[1729770382093,2.24811744,2529.9,2529.2,0.7807]
[1729770382293,0.01,2529.4,2529.3,0.24996412]
[1729770382500,0.01,2529.4,2529.2,1.31089401]
[1729770382501,3.96357,2529.4,2529.2,1.31089401]
[1729770382803,4.06241567,2529.4,2529.3,0.24996412]
[1729770383031,4.06241567,2529.4,2529.2,1.31089401]
[1729770383194,0.01,2529.5,2529.3,2.32825813]
[1729770383394,0.01,2529.5,2529.4,1.31089401]
[1729770383629,0.01,2529.4,2529.3,2.07829401]
[1729770384322,3.96335,2529.5,2529.3,2.07829401]
[1729770384497,0.01,2529.5,2529.4,1.31089401]
[1729770384705,3.96335,2529.5,2529.3,2.07829401]
[1729770385106,0.01,2529.5,2529.3,2.07829401]
[1729770385509,0.01,2529.5,2529.4,1.31089401]
[1729770386799,0.01,2529.5,2529.4,1.56080926]
[1729770387641,0.01,2529.5,2529.4,0.24991525]
[1729770389312,0.01,2529.5,2529.4,1.56080926]
[1729770389514,0.01,2529.5,2529.4,0.24991525]
[1729770390232,3.96335,2529.5,2529.4,0.24991525]
[1729770390601,3.96335,2529.5,2529.4,1.56080926]
[1729770390936,0.01,2529.5,2529.4,0.24991525]
[1729770394403,0.01,2529.5,2529.4,1.56080926]
[1729770394841,3.96325,2529.6,2529.4,1.56080926]
[1729770395012,0.01,2529.5,2529.4,1.56080926]
[1729770397416,3.96325,2529.6,2529.4,1.56080926]
[1729770397611,0.01,2529.5,2529.4,1.56080926]
[1729770400529,3.96335,2529.5,2529.4,1.56080926]
[1729770400723,4.74025,2529.5,2529.4,0.24991525]
[1729770400917,4.74025,2529.5,2529.2,1.31089401]
[1729770401334,4.74025,2529.5,2529.3,0.24119616]
[1729770401504,4.74025,2529.5,2529.3,1.31089401]
[1729770401950,4.74025,2529.5,2529.4,0.24108943]
[1729770402304,4.74025,2529.5,2529.3,1.31089401]
[1729770402632,4.74025,2529.5,2529.4,0.24108943]
[1729770404510,4.74025,2529.5,2529.2,1.31089401]
[1729770404950,4.74025,2529.5,2529.3,0.24119616]
[1729770405245,4.74025,2529.5,2529.3,1.31089401]
[1729770405609,4.74025,2529.5,2529.4,0.24108943]
[1729770406516,4.74025,2529.5,2529.3,1.31089401]
[1729770406735,4.74025,2529.5,2529.4,0.24108943]
[1729770407252,4.74025,2529.5,2529.3,1.31089401]
[1729770407452,4.74025,2529.5,2529.4,0.24108943]
[1729770408433,4.74025,2529.5,2529.2,1.31089401]
[1729770408638,4.74025,2529.5,2529.4,0.24108463]
[1729770408836,4.74025,2529.5,2529.3,1.31089401]
[1729770408837,4.74025,2529.5,2529.3,1.55208537]
[1729770409025,4.74025,2529.5,2529.4,0.24108463]
[1729770417239,3.96335,2529.5,2529.4,0.24108463]
[1729770417849,0.01,2529.5,2529.4,1.55197864]
[1729770418052,0.01,2529.7,2529.4,2.1025575]
[1729770418258,0.01,2529.7,2529.6,1.31089401]
[1729770418725,0.01,2529.7,2529.6,1.5517652]
[1729770419627,3.96303,2529.7,2529.6,1.5517652]
[1729770419962,3.96303,2529.7,2529.6,2.21847119]
[1729770420140,4.06186212,2529.7,2529.6,2.21847119]
[1729770423262,4.05186212,2529.7,2529.6,2.21847119]
[1729770425243,5.72488533,2529.7,2529.6,2.21847119]
[1729770426325,10.03577934,2529.7,2529.6,2.21847119]
[1729770426532,9.93694722,2529.7,2529.6,2.21847119]
[1729770426734,9.93694722,2529.7,2529.6,1.9776]
[1729770427045,9.93694722,2529.7,2529.6,2.21018531]
[1729770427227,8.62605321,2529.7,2529.6,2.21018531]
[1729770427667,8.63605321,2529.7,2529.6,2.21018531]
[1729770429834,5.63605321,2529.7,2529.6,2.21018531]
[1729770430031,4.75793,2529.7,2529.6,2.21018531]
[1729770430959,4.07186255,2529.7,2529.6,2.21018531]
[1729770431165,0.02,2529.7,2529.6,3.52107932]
[1729770433137,0.02,2529.7,2529.6,2.21018531]
[1729770433347,0.02,2529.7,2529.6,3.52107932]
[1729770433550,0.02,2529.7,2529.6,4.34853825]
[1729770434076,0.01,2529.7,2529.6,4.34853825]
[1729770434279,0.02,2529.9,2529.6,5.14863825]
[1729770434445,0.02,2529.9,2529.8,1.31089401]
[1729770434774,3.97272,2529.9,2529.8,0.2323719]
[1729770434943,4.07154484,2529.9,2529.7,1.31089401]
[1729770435142,4.07154484,2529.9,2529.7,1.8024993]
[1729770435375,4.07154484,2529.9,2529.8,0.2323719]
[1729770435671,0.11882484,2529.9,2529.7,0.49160529]
[1729770435881,3.95288,2529.8,2529.7,0.49160529]
[1729770436045,3.95288,2529.8,2529.7,1.8024993]
[1729770436448,0.11882484,2529.9,2529.7,1.8024993]
[1729770436646,4.07155484,2529.9,2529.7,1.8024993]
[1729770437589,0.01,2529.9,2529.8,1.85165983]
[1729770438245,3.96272,2529.9,2529.8,1.85165983]
[1729770438645,3.96272,2529.9,2529.8,0.54076582]
[1729770438845,3.95288,2529.8,2529.6,2.7777]
[1729770439056,3.95288,2529.8,2529.6,4.08859401]
[1729770439057,4.05170494,2529.8,2529.6,4.08859401]
[1729770439255,3.96303,2529.7,2529.6,1.9776]
[1729770439679,4.06186128,2529.7,2529.6,1.9776]
[1729770440486,4.07186128,2529.7,2529.6,1.9776]
[1729770440649,6.93842942,2529.7,2529.6,1.9776]
[1729770440978,5.62753541,2529.7,2529.6,1.9776]
[1729770447079,5.62753541,2529.7,2529.6,2.21022338]
[1729770451494,8.62753541,2529.7,2529.6,2.21022338]
[1729770451653,8.52870413,2529.7,2529.6,2.21022338]
[1729770469009,9.83959814,2529.7,2529.6,2.21022338]
[1729770469214,9.83959814,2529.7,2529.6,1.9776]
[1729770469604,9.83959814,2529.7,2529.6,1.54335255]
[1729770470374,3.95444,2528.8,2528.7,0.7629]
[1729770470723,3.95444,2528.8,2528.7,0.99667446]
[1729770471007,4.05330852,2528.8,2528.7,0.99667446]
[1729770471320,4.05330852,2528.8,2528.7,2.30756847]
[1729770471478,3.95444,2528.8,2528.7,2.30756847]
[1729770471808,3.95444,2528.8,2528.7,3.85176847]
[1729770474085,3.95444,2528.8,2528.7,2.54087446]
[1729770474315,3.95444,2528.8,2528.7,3.85176847]
[1729770476327,3.97441,2528.9,2528.7,3.85176847]
[1729770477927,7.92881,2528.9,2528.7,3.85176847]
[1729770478084,0.09886036,2528.8,2528.7,3.85176847]
[1729770478286,4.05330036,2528.8,2528.7,3.85176847]
[1729770482586,0.02,2528.9,2528.7,3.85176847]
[1729770482813,3.97429,2528.9,2528.8,1.31089401]
[1729770483120,3.97429,2528.9,2528.8,1.54506622]
[1729770484202,0.02,2528.9,2528.8,1.54506622]
[1729770484428,3.97428,2528.9,2528.8,1.54506622]
[1729770486130,3.97428,2528.9,2528.8,0.23417221]
[1729770486338,4.07313942,2528.9,2528.8,0.23417221]
[1729770486498,4.95105736,2528.9,2528.8,0.23417221]
[1729770489231,4.95105736,2528.9,2528.7,1.5442]
[1729770489232,3.95444,2528.8,2528.7,1.5442]
[1729770489416,7.80662143,2528.8,2528.7,1.5442]
[1729770489742,9.01863401,2528.8,2528.7,1.5442]
[1729770489931,7.70774,2528.8,2528.7,1.5442]
[1729770490236,9.5891169,2528.8,2528.7,1.5442]
[1729770490436,9.4902372,2528.8,2528.7,1.5442]
[1729770490608,10.80113121,2528.8,2528.7,1.5442]
[1729770491636,9.4902372,2528.8,2528.7,1.5442]
[1729770496848,10.80113121,2528.8,2528.7,1.5442]
[1729770498567,10.80113121,2528.8,2528.7,1.24259221]
[1729770498766,3.95569,2528.0,2527.9,0.7677]
[1729770498971,3.95569,2528.0,2527.9,2.07859401]
[1729770499132,3.95569,2528.0,2527.9,2.31403234]
[1729770499741,3.96555,2528.1,2527.9,2.31403234]
[1729770499941,7.92121,2528.1,2527.9,2.31403234]
[1729770500176,7.92121,2528.1,2527.9,3.55663234]
[1729770500485,0.02,2528.3,2528.0,1.31089401]
[1729770500644,0.02,2528.3,2528.2,1.31089401]
[1729770500843,0.02,2528.3,2528.2,1.54626894]
[1729770501365,3.97522,2528.3,2528.2,1.31089401]
[1729770501774,4.0741065,2528.3,2528.2,1.54626894]
[1729770502078,4.0741065,2528.3,2528.2,0.23537493]
[1729770502375,4.0741065,2528.3,2528.2,1.54626894]
[1729770502574,4.0741065,2528.3,2528.2,0.23537493]
[1729770502942,4.0741065,2528.3,2528.2,1.54626894]
[1729770503370,0.1188865,2528.3,2528.2,1.54626894]
[1729770503550,0.02,2528.3,2528.2,2.56476583]
[1729770506299,0.01,2528.5,2528.2,6.52011583]
[1729770506586,11.42422,2529.0,2528.6,0.8083]
[1729770506587,7.48,2529.0,2528.6,0.8083]
[1729770506785,7.48,2529.0,2528.9,1.31089401]
[1729770506786,0.01,2529.0,2528.9,1.31089401]
[1729770506987,3.95428,2528.9,2528.8,2.11919401]
[1729770508184,0.01,2529.1,2528.8,2.11919401]
[1729770508389,0.01,2529.1,2528.7,3.95452]
[1729770508390,3.96394,2529.2,2529.0,2.11919401]
[1729770508580,0.02,2529.2,2529.1,1.31089401]
[1729770510486,0.02,2529.2,2529.1,2.31364641]
[1729770512657,3.95352,2529.4,2529.1,2.31364641]
[1729770512658,0.01,2529.4,2529.2,0.7584]
[1729770513002,0.01,2529.4,2529.3,2.06929401]
[1729770515108,3.9635,2529.4,2529.3,0.7584]
[1729770515270,3.9635,2529.4,2529.2,1.31089401]
[1729770515670,3.9635,2529.4,2529.3,1.31089401]
[1729770516117,3.9635,2529.4,2529.2,1.31089401]
[1729770517207,3.9635,2529.4,2529.3,1.31089401]
[1729770518373,3.9635,2529.4,2529.2,1.31089401]
[1729770518709,3.95367,2529.3,2529.1,2.11699401]
[1729770519008,3.95367,2529.3,2529.1,0.8061]
[1729770519009,4.06251685,2529.3,2529.1,0.8061]
[1729770519176,0.10884607,2529.2,2529.1,0.8061]
[1729770519376,3.96381,2529.2,2529.1,2.11699401]
[1729770519809,0.01,2529.2,2529.1,2.11699401]
[1729770520111,0.10884772,2529.2,2529.1,2.11699401]
[1729770520604,0.01,2529.2,2529.1,2.11699401]
[1729770521974,0.01,2529.2,2529.1,2.35054128]
[1729770522175,0.01,2529.3,2529.1,2.35054128]
[1729770522607,0.01,2529.3,2529.2,1.31089401]
[1729770522980,0.01,2529.3,2529.2,1.54433453]
[1729770523187,0.01,2529.4,2529.2,1.54433453]
[1729770523408,0.01,2529.4,2529.3,1.31089401]
[1729770523809,0.01,2529.4,2529.3,1.54422779]
[1729770524009,0.01,2529.4,2529.3,0.23333378]
[1729770524715,0.01,2529.4,2529.1,4.76006]
[1729770524897,0.01,2529.3,2529.1,0.8061]
[1729770527117,0.01,2529.3,2529.1,4.76006]
[1729770527417,0.01,2529.4,2529.2,0.7732]
[1729770532618,3.96352,2529.4,2529.2,0.7732]
[1729770532920,0.01,2529.4,2529.2,0.7732]
[1729770536907,0.01,2529.4,2529.3,0.23320053]
[1729770537102,0.01,2529.4,2529.2,0.7732]
[1729770537422,0.01,2529.4,2529.3,0.23320053]
[1729770537999,0.01,2529.4,2529.2,0.7732]
[1729770538200,0.01,2529.4,2529.3,0.23320053]
[1729770538520,0.01,2529.4,2529.2,0.7732]
[1729770538726,0.01,2529.8,2529.6,3.95308]
[1729770538895,0.01,2529.8,2529.7,0.7687]
[1729770539225,0.01,2529.9,2529.7,0.7687]
[1729770539518,0.01,2529.9,2529.7,1.00141654]
[1729770539519,3.96274,2529.9,2529.7,1.00141654]
[1729770539915,0.01,2529.9,2529.7,1.00141654]
[1729770540287,0.01,2529.8,2529.7,0.23271654]
[1729770540517,3.96288,2529.8,2529.4,4.73318]
[1729770540822,3.96288,2529.8,2529.7,0.23271654]
[1729770541017,3.95312,2529.7,2529.4,0.7798]
[1729770541223,3.9633,2529.6,2529.2,4.74631]
[1729770541425,0.01,2529.6,2529.2,4.74631]
[1729770541629,0.01,2529.6,2529.3,3.95363]
[1729770541800,0.01,2529.7,2529.4,3.95341]
[1729770542827,0.01,2529.7,2529.5,0.7735]
[1729770543130,0.01,2529.8,2529.5,0.7735]
[1729770543631,4.06176533,2529.8,2529.5,0.7735]
[1729770545333,8.01478533,2529.8,2529.5,0.7735]
[1729770545501,7.91596,2529.8,2529.5,0.7735]
[1729770545699,3.96294,2529.8,2529.5,0.7735]
[1729770545898,3.95347,2529.5,2529.0,3.954]
[1729770546100,0.01,2529.4,2529.1,3.9539]
[1729770546304,0.01,2529.4,2529.3,1.31071819]
[1729770546529,0.01,2529.4,2529.2,1.31071819]
[1729770546925,3.96357,2529.4,2529.2,1.31071819]
[1729770547100,3.96354,2529.4,2529.2,1.31071819]
[1729770547305,0.01,2529.2,2529.1,1.31071819]
[1729770548625,3.97354,2529.4,2529.1,1.31071819]
[1729770548949,3.97354,2529.4,2529.3,1.31071819]
[1729770549110,0.02,2529.4,2529.3,1.31071819]
[1729770549749,0.02,2529.6,2529.3,1.31071819]
[1729770549949,0.02,2529.6,2529.5,1.31071819]
[1729770550308,0.02,2529.6,2529.4,1.54357405]
[1729770550547,0.02,2529.6,2529.5,0.23274913]
[1729770550750,3.97319,2529.6,2529.5,0.23274913]
[1729770551044,0.02,2529.6,2529.5,0.23274913]
[1729770551845,4.07202312,2529.6,2529.5,0.23274913]
[1729770552413,5.63033743,2529.6,2529.5,0.23274913]
[1729770552814,3.9535,2529.5,2529.3,1.31071819]
[1729770553024,3.9535,2529.5,2529.4,1.31071819]
[1729770553025,4.05233902,2529.5,2529.4,1.31071819]
[1729770554136,0.01,2529.4,2529.3,1.31071819]
[1729770554342,3.9635,2529.4,2529.3,1.31071819]
[1729770554649,0.01,2529.4,2529.3,1.31071819]
[1729770555028,0.02,2529.4,2529.3,1.31071819]
[1729770556838,3.96321,2529.6,2529.3,1.31071819]
[1729770557049,3.96321,2529.6,2529.5,1.31071819]
[1729770557352,3.96321,2529.6,2529.4,1.31071819]
[1729770557519,4.06204837,2529.6,2529.4,1.31071819]
[1729770557726,3.96321,2529.6,2529.4,1.31071819]
[1729770558157,3.95335,2529.5,2529.3,2.06711819]
[1729770558359,3.95371,2529.3,2529.2,1.31071819]
[1729770559328,3.97354,2529.4,2529.2,1.31071819]
[1729770559667,3.97354,2529.4,2529.3,1.31071819]
[1729770560776,3.96354,2529.4,2529.3,1.31071819]
[1729770563051,3.95373,2529.3,2529.2,1.31071819]
[1729770563967,3.96373,2529.3,2529.2,1.31071819]
[1729770564170,4.06257527,2529.3,2529.2,1.31071819]
[1729770564343,4.06257527,2529.3,2529.1,1.31071819]
[1729770564545,3.96373,2529.3,2529.2,1.31071819]
[1729770564979,4.06257502,2529.3,2529.2,1.31071819]
[1729770565479,3.96373,2529.3,2529.2,1.31071819]
[1729770565877,4.06257807,2529.3,2529.2,1.31071819]
[1729770566688,0.01,2529.3,2529.2,1.31071819]
[1729770566987,0.01,2529.3,2529.2,2.37217785]
[1729770567150,4.06250498,2529.3,2529.2,0.23325966]
[1729770567354,3.96366,2529.3,2529.2,1.54397785]
[1729770567550,3.96366,2529.3,2529.2,0.23325966]
[1729770567884,5.66722997,2529.3,2529.2,0.23325966]
[1729770569088,5.66722997,2529.3,2529.2,1.54397785]